Workbook

Sheet Dépenses
B3: Soirée de lancement de produit
B4: DÉTAILS DES DÉPENSES
B7: Total des dépenses | C7: Estimé | D7: Réel | F7: Programme | G7: Estimé | H7: Réel
C8: =DépensesSite[[#Totals],[Estimé]]+DépensesDécoration[[#Totals],[Estimé]]+DépensesPublicité[[#Totals],[Estimé]]+DépensesDiverses[[#Totals],[Estimé]]+DépensesBoissons[[#Totals],[Estimé]]+DépensesProgramme[[#Totals],[Estimé]]+DépensesRécompenses[[#Totals],[Estimé]] -> 2,090.00 € | D8: =DépensesSite[[#Totals],[Réel]]+DépensesDécoration[[#Totals],[Réel]]+DépensesPublicité[[#Totals],[Réel]]+DépensesDiverses[[#Totals],[Réel]]+DépensesBoissons[[#Totals],[Réel]]+DépensesProgramme[[#Totals],[Réel]]+DépensesRécompenses[[#Totals],[Réel]] -> 1,640.00 € | F8: Intervenants | G8: 750.00 € | H8: 700.00 €
F9: Présentateurs | G9: 150.00 € | H9: 0.00 €
F10: Déplacements
B11: Site | C11: Estimé | D11: Réel | F11: Hôtel
B12: Location de salle | C12: 500.00 € | D12: 450.00 € | F12: Autres
B13: Personnel du site | F13: Total | G13: =SUBTOTAL(109,DépensesProgramme[Estimé]) -> 900.00 € | H13: =SUBTOTAL(109,DépensesProgramme[Réel]) -> 700.00 €
B14: Matériel
B15: Tables et chaises | F15: Publicité | G15: Estimé | H15: Réel
B16: Total | C16: =SUBTOTAL(109,DépensesSite[Estimé]) -> 500.00 € | D16: =SUBTOTAL(109,DépensesSite[Réel]) -> 450.00 € | F16: Travail graphique
F17: Photocopie / Impression | G17: 20.00 € | H17: 20.00 €
B18: Décorations | C18: Estimé | D18: Réel | F18: Affranchissement
B19: Fleurs | C19: 200.00 € | D19: 100.00 € | F19: Total | G19: =SUBTOTAL(109,DépensesPublicité[Estimé]) -> 20.00 € | H19: =SUBTOTAL(109,DépensesPublicité[Réel]) -> 20.00 €
B20: Bougies
B21: Éclairage | F21: Prix | G21: Estimé | H21: Réel
B22: Ballons | F22: Rubans / Trophées
B23: Fournitures papier | F23: Cadeaux | G23: 100.00 € | H23: 100.00 €
B24: Total | C24: =SUBTOTAL(109,DépensesDécoration[Estimé]) -> 200.00 € | D24: =SUBTOTAL(109,DépensesDécoration[Réel]) -> 100.00 € | F24: Total | G24: =SUBTOTAL(109,DépensesRécompenses[Estimé]) -> 100.00 € | H24: =SUBTOTAL(109,DépensesRécompenses[Réel]) -> 100.00 €
B26: Rafraîchissements | C26: Estimé | D26: Réel | F26: Divers | G26: Estimé | H26: Réel
B27: Repas | F27: Téléphone | G27: 50.00 € | H27: 50.00 €
B28: Boissons | C28: 220.00 € | D28: 120.00 € | F28: Transport | G28: 20.00 € | H28: 20.00 €
B29: Linge de table | C29: 80.00 € | D29: 80.00 € | F29: Papeterie
B30: Personnel et pourboires | F30: Télécopie
B31: Total | C31: =SUBTOTAL(109,DépensesBoissons[Estimé]) -> 300.00 € | D31: =SUBTOTAL(109,DépensesBoissons[Réel]) -> 200.00 € | F31: Total | G31: =SUBTOTAL(109,DépensesDiverses[Estimé]) -> 70.00 € | H31: =SUBTOTAL(109,DépensesDiverses[Réel]) -> 70.00 €

Sheet Revenu
B3: =Dépenses!B3 -> Soirée de lancement de produit
B4: DÉTAILS DES REVENUS
B7: Total des revenus | C7: Estimé | D7: Réel
C8: =SUM(Entrées[[#Totals],[Revenus estimés]],AnnoncesDansProgramme[[#Totals],[Revenus estimés]],ExposantsEtVendeurs[[#Totals],[Revenus estimés]],VenteArticles[[#Totals],[Revenus estimés]]) -> 4,450.00 € | D8: =SUM(Entrées[[#Totals],[Revenus réels]],AnnoncesDansProgramme[[#Totals],[Revenus réels]],ExposantsEtVendeurs[[#Totals],[Revenus réels]],VenteArticles[[#Totals],[Revenus réels]]) -> 4,170.00 €
B10: Entrées
B11: Type | C11: Estimé | D11: Réel | E11: Prix | F11: Revenus estimés | G11: Revenus réels
B12: Adultes | C12: 30 | D12: 25 | E12: 20.00 € | F12: =C12*E12 -> 600.00 € | G12: =D12*E12 -> 500.00 €
B13: Enfants | C13: 20 | D13: 22 | E13: 10.00 € | F13: =C13*E13 -> 200.00 € | G13: =D13*E13 -> 220.00 €
B14: Autre | C14: 10 | D14: 10 | E14: 10.00 € | F14: =C14*E14 -> 100.00 € | G14: =D14*E14 -> 100.00 €
B15: Total | C15: =SUBTOTAL(109,Entrées[Estimé]) -> 60 | D15: =SUBTOTAL(109,Entrées[Réel]) -> 57 | F15: =SUBTOTAL(109,Entrées[Revenus estimés]) -> 900.00 € | G15: =SUBTOTAL(109,Entrées[Revenus réels]) -> 820.00 €
B17: Publicités dans le programme
B18: Type | C18: Estimé | D18: Réel | E18: Prix | F18: Revenus estimés | G18: Revenus réels
B19: Couvertures | C19: 2 | D19: 4 | E19: 50.00 € | F19: =C19*E19 -> 100.00 € | G19: =D19*E19 -> 200.00 €
B20: Demi-pages | C20: 2 | D20: 2 | E20: 30.00 € | F20: =C20*E20 -> 60.00 € | G20: =D20*E20 -> 60.00 €
B21: Quart de pages | C21: 2 | D21: 2 | E21: 20.00 € | F21: =C21*E21 -> 40.00 € | G21: =D21*E21 -> 40.00 €
B22: Total | C22: =SUBTOTAL(109,AnnoncesDansProgramme[Estimé]) -> 6 | D22: =SUBTOTAL(109,AnnoncesDansProgramme[Réel]) -> 8 | F22: =SUBTOTAL(109,AnnoncesDansProgramme[Revenus estimés]) -> 200.00 € | G22: =SUBTOTAL(109,AnnoncesDansProgramme[Revenus réels]) -> 300.00 €
B24: Exposants / Fournisseurs
B25: Type | C25: Estimé | D25: Réel | E25: Prix | F25: Revenus estimés | G25: Revenus réels
B26: Grands stands | C26: 5 | D26: 5 | E26: 300.00 € | F26: =C26*E26 -> 1,500.00 € | G26: =D26*E26 -> 1,500.00 €
B27: Stands moyens | C27: 5 | D27: 4 | E27: 200.00 € | F27: =C27*E27 -> 1,000.00 € | G27: =D27*E27 -> 800.00 €
B28: Petits stands | C28: 1 | D28: 0 | E28: 100.00 € | F28: =C28*E28 -> 100.00 € | G28: =D28*E28 -> 0.00 €
B29: Total | C29: =SUBTOTAL(109,ExposantsEtVendeurs[Estimé]) -> 11 | D29: =SUBTOTAL(109,ExposantsEtVendeurs[Réel]) -> 9 | F29: =SUBTOTAL(109,ExposantsEtVendeurs[Revenus estimés]) -> 2,600.00 € | G29: =SUBTOTAL(109,ExposantsEtVendeurs[Revenus réels]) -> 2,300.00 €
B31: Vente d’articles
B32: Type | C32: Estimé | D32: Réel | E32: Prix | F32: Revenus estimés | G32: Revenus réels
B33: Article 1 | C33: 2 | D33: 2 | E33: 150.00 € | F33: =C33*E33 -> 300.00 € | G33: =D33*E33 -> 300.00 €
B34: Bien 2 | C34: 5 | D34: 5 | E34: 50.00 € | F34: =C34*E34 -> 250.00 € | G34: =D34*E34 -> 250.00 €
B35: Bien 3 | C35: 5 | D35: 5 | E35: 20.00 € | F35: =C35*E35 -> 100.00 € | G35: =D35*E35 -> 100.00 €
B36: Élément 4 | C36: 5 | D36: 5 | E36: 20.00 € | F36: =C36*E36 -> 100.00 € | G36: =D36*E36 -> 100.00 €
B37: Total | C37: =SUBTOTAL(109,VenteArticles[Estimé]) -> 17 | D37: =SUBTOTAL(109,VenteArticles[Réel]) -> 17 | F37: =SUBTOTAL(109,VenteArticles[Revenus estimés]) -> 750.00 € | G37: =SUBTOTAL(109,VenteArticles[Revenus réels]) -> 750.00 €

Sheet Résumé des profits et pertes
B3: =Dépenses!B3 -> Soirée de lancement de produit
B4: RÉCAPITULATIF DES PROFITS ET PERTES
B7: Récapitulatif des dépenses | C7: Estimé | D7: Réel | F7: Dépenses réelles | L7: Classement | M7: Dépenses | N7: Estimé | O7: Réel | P7: Valeur de classement
B8: =VLOOKUP(1,$L$8:$O$14,2,FALSE) -> Programme | C8: =VLOOKUP(1,$L$8:$O$14,3,FALSE) -> 900.00 € | D8: =VLOOKUP(1,$L$8:$O$14,4,FALSE) -> 700.00 € | L8: =_xlfn.RANK.AVG(P8,$P$8:$P$14) -> 2 | M8: Site | N8: =DépensesSite[[#Totals],[Estimé]] -> 500 € | O8: =DépensesSite[[#Totals],[Réel]] -> 450 € | P8: =O8+ROW(O8)/10000 -> 450.0008
B9: =VLOOKUP(2,$L$8:$O$14,2,FALSE) -> Site | C9: =VLOOKUP(2,$L$8:$O$14,3,FALSE) -> 500.00 € | D9: =VLOOKUP(2,$L$8:$O$14,4,FALSE) -> 450.00 € | L9: 5 | M9: Décorations | N9: =DépensesDécoration[[#Totals],[Estimé]] -> 200 € | O9: =DépensesDécoration[[#Totals],[Réel]] -> 100 € | P9: =O9+ROW(O9)/10000 -> 100.0009
B10: =VLOOKUP(3,$L$8:$O$14,2,FALSE) -> Rafraîchissements | C10: =VLOOKUP(3,$L$8:$O$14,3,FALSE) -> 300.00 € | D10: =VLOOKUP(3,$L$8:$O$14,4,FALSE) -> 200.00 € | L10: 3 | M10: Rafraîchissements | N10: =DépensesBoissons[[#Totals],[Estimé]] -> 300 € | O10: =DépensesBoissons[[#Totals],[Réel]] -> 200 € | P10: 200.0010
B11: =VLOOKUP(4,$L$8:$O$14,2,FALSE) -> Prix | C11: =VLOOKUP(4,$L$8:$O$14,3,FALSE) -> 100.00 € | D11: =VLOOKUP(4,$L$8:$O$14,4,FALSE) -> 100.00 € | L11: 1 | M11: Programme | N11: =DépensesProgramme[[#Totals],[Estimé]] -> 900 € | O11: =DépensesProgramme[[#Totals],[Réel]] -> 700 € | P11: 700.0011
B12: =VLOOKUP(5,$L$8:$O$14,2,FALSE) -> Décorations | C12: =VLOOKUP(5,$L$8:$O$14,3,FALSE) -> 200.00 € | D12: =VLOOKUP(5,$L$8:$O$14,4,FALSE) -> 100.00 € | L12: 7 | M12: Publicité | N12: =DépensesPublicité[[#Totals],[Estimé]] -> 20 € | O12: =DépensesPublicité[[#Totals],[Réel]] -> 20 € | P12: 20.0012
B13: =VLOOKUP(6,$L$8:$O$14,2,FALSE) -> Divers | C13: =VLOOKUP(6,$L$8:$O$14,3,FALSE) -> 70.00 € | D13: =VLOOKUP(6,$L$8:$O$14,4,FALSE) -> 70.00 € | L13: 4 | M13: Prix | N13: =DépensesRécompenses[[#Totals],[Estimé]] -> 100 € | O13: =DépensesRécompenses[[#Totals],[Réel]] -> 100 € | P13: 100.0013
B14: =VLOOKUP(7,$L$8:$O$14,2,FALSE) -> Publicité | C14: =VLOOKUP(7,$L$8:$O$14,3,FALSE) -> 20.00 € | D14: =VLOOKUP(7,$L$8:$O$14,4,FALSE) -> 20.00 € | L14: 6 | M14: Divers | N14: =DépensesDiverses[[#Totals],[Estimé]] -> 70 € | O14: =DépensesDiverses[[#Totals],[Réel]] -> 70 € | P14: 70.0014
B15: Total | C15: =SUBTOTAL(109,RécapitulatifDesDépenses[Estimé]) -> 2,090.00 € | D15: =SUBTOTAL(109,RécapitulatifDesDépenses[Réel]) -> 1,640.00 €
B17: Récapitulatif des revenus | C17: Estimé | D17: Réel | F17: Revenus réels | L17: Classement | M17: Revenus | N17: Estimé | O17: Réel | P17: Valeur de classement
B18: =VLOOKUP(1,$L$18:$O$21,2,FALSE) -> Exposants / Fournisseurs | C18: =VLOOKUP(1,$L$18:$O$21,3,FALSE) -> 2,600.00 € | D18: =VLOOKUP(1,$L$18:$O$21,4,FALSE) -> 2,300.00 € | L18: =_xlfn.RANK.AVG(P18,$P$18:$P$21) -> 2 | M18: Entrées | N18: =Entrées[[#Totals],[Revenus estimés]] -> 900 € | O18: =Entrées[[#Totals],[Revenus réels]] -> 820 € | P18: =O18+ROW(O18)/10000 -> 820.0018
B19: =VLOOKUP(2,$L$18:$O$21,2,FALSE) -> Entrées | C19: =VLOOKUP(2,$L$18:$O$21,3,FALSE) -> 900.00 € | D19: =VLOOKUP(2,$L$18:$O$21,4,FALSE) -> 820.00 € | L19: =_xlfn.RANK.AVG(P19,$P$18:$P$21) -> 4 | M19: Publicités dans le programme | N19: =AnnoncesDansProgramme[[#Totals],[Revenus estimés]] -> 200 € | O19: =AnnoncesDansProgramme[[#Totals],[Revenus réels]] -> 300 € | P19: 300.0019
B20: Vente d’articles | C20: =VLOOKUP(3,$L$18:$O$21,3,FALSE) -> 750.00 € | D20: =VLOOKUP(3,$L$18:$O$21,4,FALSE) -> 750.00 € | L20: 1 | M20: Exposants / Fournisseurs | N20: =ExposantsEtVendeurs[[#Totals],[Revenus estimés]] -> 2,600 € | O20: =ExposantsEtVendeurs[[#Totals],[Revenus réels]] -> 2,300 € | P20: 2,300.0020
B21: =VLOOKUP(4,$L$18:$O$21,2,FALSE) -> Publicités dans le programme | C21: =VLOOKUP(4,$L$18:$O$21,3,FALSE) -> 200.00 € | D21: =VLOOKUP(4,$L$18:$O$21,4,FALSE) -> 300.00 € | L21: 3 | M21: Vente d’articles | N21: =VenteArticles[[#Totals],[Revenus estimés]] -> 750 € | O21: =VenteArticles[[#Totals],[Revenus réels]] -> 750 € | P21: 750.0021
B22: Total | C22: =SUBTOTAL(109,RevenuRésumé[Estimé]) -> 4,450.00 € | D22: =SUBTOTAL(109,RevenuRésumé[Réel]) -> 4,170.00 €
B24: Récapitulatif des profits et pertes | C24: Estimé | D24: Réel
B25: Total des revenus | C25: =RevenuRésumé[[#Totals],[Estimé]] -> 4,450.00 € | D25: =RevenuRésumé[[#Totals],[Réel]] -> 4,170.00 €
B26: Total des dépenses | C26: =RécapitulatifDesDépenses[[#Totals],[Estimé]] -> 2,090.00 € | D26: =RécapitulatifDesDépenses[[#Totals],[Réel]] -> 1,640.00 €
B27: Total des profits (ou pertes) | C27: =C25-C26 -> 2,360.00 € | D27: =D25-D26 -> 2,530.00 €
B29: Ratio dépenses/profits (pertes) | E29: Coûts estimés contre coûts réels
